bitfinex-derivatives/quotes_SOLF0:USTF0_20250609
["timestamp","ask_amount","ask_price","bid_price","bid_amount"]
[1749499052817,6.4167,155.75,155.74,7.67175062]
[1749499053824,6.4165,155.76,155.74,7.67175062]
[1749499054017,6.4165,155.76,155.75,7.67175062]
[1749499056420,6.4168,155.75,155.73,0.04818654]
[1749499056617,6.4168,155.75,155.74,7.67175062]
[1749499056824,5.26535795,155.77,155.73,0.04818654]
[1749499057119,5.26535795,155.77,155.71,32.38]
[1749499058017,0.0472524,155.76,155.72,0.04755612]
[1749499058619,6.4176,155.73,155.72,0.04755612]
[1749499079243,6.4176,155.73,155.72,4.95403559]
[1749499083646,11.66658241,155.73,155.72,4.95403559]
[1749499083849,6.4176,155.73,155.72,4.95403559]
[1749499084147,11.66658241,155.73,155.72,4.95403559]
[1749499087352,0.0472524,155.76,155.72,4.95403559]
[1749499087642,0.0472524,155.76,155.75,4.90647947]
[1749499087844,5.30442808,155.76,155.75,4.90647947]
[1749499088446,11.72072808,155.76,155.75,4.90647947]
[1749499088745,5.30442808,155.76,155.75,4.90647947]
[1749499089341,0.0472524,155.76,155.75,4.90647947]
[1749499089549,6.4635524,155.76,155.75,4.90647947]
[1749499089746,11.72865725,155.76,155.75,4.90647947]
[1749499091247,11.72865725,155.76,155.72,38.82545612]
[1749499091248,6.4168,155.75,155.74,7.66253709]
[1749499093646,11.68430416,155.75,155.74,7.66253709]
[1749499093849,6.4168,155.75,155.74,7.66253709]
[1749499095452,6.4175,155.74,155.72,32.40755612]
[1749499095640,6.4175,155.74,155.73,7.66253709]
[1749499098351,6.417,155.75,155.73,7.66253709]
[1749499098652,0.0472524,155.76,155.73,7.66253709]
[1749499098857,0.0472524,155.76,155.75,7.66253709]
[1749499100769,6.4635524,155.76,155.75,7.66253709]
[1749499101253,11.7414191,155.76,155.75,7.66253709]
[1749499103559,5.3251191,155.76,155.75,7.66253709]
[1749499103755,0.0472524,155.76,155.75,7.66253709]
[1749499104358,6.4635524,155.76,155.75,7.66253709]
[1749499104958,0.0472524,155.76,155.75,7.66253709]
[1749499105167,0.0472524,155.76,155.75,14.07933709]
[1749499107662,0.0472524,155.76,155.74,7.66253709]
[1749499109357,0.0472524,155.76,155.75,6.4168]
[1749499113163,226.19597371,155.83,155.78,6.4154]
[1749499113364,226.19597371,155.83,155.69,6.3091]
[1749499113365,5.2943568,155.82,155.77,39.98253709]
[1749499113566,6.4149,155.8,155.77,39.98253709]
[1749499113759,5.2943568,155.79,155.77,46.39833709]
[1749499113959,226.19597371,155.83,155.77,46.39833709]
[1749499114155,6.4151,155.8,155.78,0.041014]
[1749499114361,5.2959749,155.79,155.78,0.041014]
[1749499115266,11.7110749,155.79,155.78,0.041014]
[1749499121970,11.7110749,155.79,155.78,7.70355109]
[1749499125268,11.7110749,155.79,155.78,4.94256464]
[1749499129667,5.2959749,155.79,155.78,11.35806464]
[1749499129868,10.84841297,155.84,155.78,0.041014]
[1749499130172,11.26112526,155.83,155.8,4.90155064]
[1749499130362,6.4149,155.8,155.78,6.456314]
[1749499130565,6.4149,155.8,155.79,4.90155064]
[1749499130766,5.31468953,155.8,155.79,11.31665064]
[1749499131367,6.4141,155.82,155.8,6.4147]
[1749499131674,10.84841297,155.84,155.8,4.90155064]
[1749499131872,6.4151,155.79,155.78,0.041014]
[1749499132077,11.73214876,155.79,155.78,4.94256464]
[1749499132579,5.31704876,155.79,155.78,11.35806464]
[1749499132876,5.31761962,155.79,155.78,4.94256464]
[1749499133077,2.2476,155.82,155.78,4.94256464]
[1749499133275,8.6615,155.82,155.81,4.90155064]
[1749499133474,13.97911613,155.82,155.81,4.90155064]
[1749499134076,6.4147,155.81,155.8,4.90155064]
[1749499134278,11.73231613,155.81,155.8,4.90155064]
[1749499135179,6.4151,155.79,155.78,0.041014]
[1749499135378,11.73271613,155.79,155.78,4.94256464]
[1749499137778,5.31761613,155.79,155.78,11.35806464]
[1749499140275,11.73271613,155.79,155.78,0.041014]
[1749499141379,6.4161,155.77,155.75,6.4166]
[1749499141678,6.4161,155.77,155.76,4.90155064]
[1749499141880,5.31125832,155.77,155.76,4.90155064]
[1749499142081,5.31125832,155.77,155.76,11.31785064]
[1749499142675,6.45637348,155.8,155.79,4.90155064]
[1749499144176,6.4152,155.79,155.77,6.4157]
[1749499144484,5.98843581,155.8,155.78,4.90155064]
[1749499144679,5.98843581,155.8,155.79,4.90155064]
[1749499144680,0.04157348,155.8,155.79,4.90155064]
[1749499145183,6.4152,155.79,155.76,6.4161]
[1749499145383,5.98843581,155.8,155.76,6.4161]
[1749499145581,5.98843581,155.8,155.78,4.90155064]
[1749499146177,5.94686233,155.79,155.75,0.04236741]
[1749499146386,10.84841297,155.78,155.75,4.94391805]
[1749499146579,5.94686233,155.78,155.75,4.94391805]
[1749499147176,6.4159,155.77,155.75,0.04236741]
[1749499147376,5.98843581,155.8,155.75,7.70430905]
[1749499147585,5.98843581,155.8,155.77,7.66194164]
[1749499147979,6.45647348,155.8,155.77,14.07764164]
[1749499148583,6.45647348,155.8,155.79,7.66194164]
[1749499148584,0.04157348,155.8,155.79,7.66194164]
[1749499148885,0.04157348,155.8,155.77,7.66194164]
[1749499149486,0.04157348,155.8,155.78,6.4153]
[1749499149681,0.04157348,155.8,155.79,7.66194164]
[1749499150089,0.04157348,155.8,155.79,14.07704164]
[1749499150676,0.04157348,155.8,155.79,6.4151]
[1749499150881,0.04157348,155.8,155.79,14.07704164]
[1749499151986,0.04157348,155.8,155.79,6.4151]
[1749499152183,0.04157348,155.8,155.79,14.07704164]
[1749499152489,5.94686233,155.85,155.82,6.4139]
[1749499152684,6.4135,155.83,155.81,7.66194164]
[1749499152987,5.94686233,155.84,155.81,7.66194164]
[1749499153187,6.4135,155.83,155.81,7.66194164]
[1749499153390,5.94686233,155.84,155.81,7.66194164]
[1749499153889,6.4139,155.82,155.81,7.66194164]
[1749499154090,5.94686233,155.85,155.81,7.66194164]
[1749499154492,5.94686233,155.85,155.83,7.66194164]
[1749499154786,5.27862855,155.84,155.8,0.04171861]
[1749499154991,11.69212855,155.83,155.82,7.66194164]
[1749499155185,5.27862855,155.83,155.8,0.04171861]
[1749499155388,6.4143,155.81,155.8,0.04171861]
[1749499155589,11.69292855,155.81,155.8,7.70366025]
[1749499155885,5.27862855,155.81,155.8,7.70366025]
[1749499156486,5.27862855,155.81,155.8,14.11836025]
[1749499156686,5.94686233,155.85,155.8,7.70366025]
[1749499156985,5.30248868,155.84,155.82,7.66194164]
[1749499157190,5.30248868,155.83,155.82,7.66194164]
[1749499158193,5.30248868,155.83,155.82,14.07584164]
[1749499158393,6.4128,155.85,155.82,14.07584164]
[1749499158695,5.302135,155.84,155.82,32.28]
[1749499158891,4.3088,155.86,155.82,32.28]
[1749499159088,5.30224122,155.85,155.82,32.28]
[1749499159289,5.30224122,155.84,155.82,32.28]
[1749499159594,5.30224122,155.83,155.82,38.6939]
[1749499159793,5.30224122,155.83,155.82,46.35584164]
[1749499161395,5.30224122,155.83,155.82,39.94194164]
[1749499161891,5.30224122,155.83,155.8,0.04171861]
[1749499162098,5.30224122,155.82,155.81,32.24]
[1749499162586,11.71614122,155.82,155.81,32.24]
[1749499163495,5.30224122,155.82,155.81,39.90194164]
[1749499164298,5.30224122,155.82,155.81,32.24]
[1749499164492,5.30224122,155.82,155.81,46.31624164]
[1749499165197,5.30224122,155.82,155.81,39.90194164]
[1749499165396,5.30224122,155.82,155.81,32.24]
[1749499167397,11.71614122,155.82,155.81,32.24]
[1749499167599,5.30224122,155.82,155.81,32.24]
[1749499168398,11.71634122,155.82,155.8,7.70366025]
[1749499168595,5.30224122,155.81,155.8,7.70366025]
[1749499168993,5.30224122,155.81,155.8,0.04171861]
[1749499169300,11.71654122,155.81,155.8,0.04171861]
[1749499169497,11.71654122,155.81,155.8,7.70366025]
[1749499169998,5.30224122,155.81,155.8,7.70366025]
[1749499170795,5.29725406,155.81,155.8,14.11836025]
[1749499171001,5.29723856,155.81,155.8,14.11836025]
[1749499171194,8.12116233,155.85,155.8,14.11836025]
[1749499171396,6.4141,155.82,155.8,7.70366025]
[1749499171595,5.29623506,155.81,155.8,7.70366025]
[1749499172200,11.71053506,155.81,155.8,7.70366025]
[1749499172399,11.71053506,155.81,155.8,0.04171861]
[1749499173301,5.29623506,155.81,155.8,0.04171861]
[1749499173497,5.29623506,155.81,155.8,7.70366025]
[1749499174594,5.29623506,155.81,155.8,14.11836025]
[1749499174797,10.25566233,155.86,155.8,7.70366025]
[1749499175003,5.29337819,155.85,155.84,14.07494164]
[1749499176398,4.2922,155.9,155.86,6.4119]
[1749499176399,5.2916805,155.88,155.86,6.4119]
[1749499176709,6.4112,155.89,155.87,7.66194164]
[1749499177002,5.29066357,155.88,155.87,7.66194164]
[1749499177605,5.29066357,155.88,155.86,6.412]
[1749499177801,5.29066357,155.87,155.85,7.70758542]
[1749499178006,5.29066357,155.86,155.85,7.70758542]
[1749499180404,5.29066357,155.86,155.85,0.04564378]
[1749499181409,11.70286357,155.86,155.85,0.04564378]
[1749499183806,5.29066357,155.86,155.85,7.70758542]
[1749499184212,5.29066357,155.86,155.85,0.04564378]
[1749499184412,5.29066357,155.86,155.79,32.24]
[1749499184610,18.89946754,155.85,155.79,39.90194164]
[1749499184914,7.66194164,155.83,155.76,32.24]
[1749499185110,5.29066357,155.82,155.76,32.24]
[1749499185309,5.3369963,155.81,155.77,0.04692502]
[1749499185512,5.29066357,155.8,155.77,0.04692502]
[1749499185810,6.4155,155.78,155.77,0.04692502]
[1749499186012,11.70616357,155.78,155.77,0.04692502]
[1749499187211,6.4155,155.78,155.77,0.04692502]
[1749499189113,11.7046677,155.78,155.77,0.04692502]
[1749499189420,6.4165,155.76,155.73,32.24]
[1749499189609,13.60880397,155.81,155.73,32.24]
[1749499189810,5.27124918,155.8,155.73,39.90194164]
[1749499190010,6.4171,155.75,155.73,32.24]
[1749499190207,6.4171,155.75,155.72,6.4177]
[1749499190514,6.45832941,155.75,155.72,14.12100236]
[1749499192419,6.4172,155.74,155.72,0.04136072]
[1749499192715,0.04122941,155.75,155.72,0.04136072]
[1749499193314,0.04122941,155.75,155.73,6.4174]
[1749499193518,0.04122941,155.75,155.73,7.66194164]
[1749499193818,0.04122941,155.75,155.74,6.4172]
[1749499194416,0.04122941,155.75,155.74,38.7772]
[1749499195514,0.04122941,155.75,155.72,0.04136072]
[1749499196121,6.4172,155.74,155.72,6.45916072]
[1749499196321,7.70317105,155.75,155.72,0.04136072]
[1749499196523,0.04122941,155.75,155.72,0.04136072]
[1749499196716,6.4175,155.74,155.72,0.04136072]
[1749499197119,0.04122941,155.75,155.72,0.04136072]
[1749499198120,6.4172,155.74,155.72,0.04136072]
[1749499198426,0.04122941,155.75,155.72,0.04136072]
[1749499198621,6.4175,155.74,155.72,0.04136072]
[1749499198822,0.04122941,155.75,155.72,0.04136072]
[1749499199524,6.4172,155.74,155.72,0.04136072]
[1749499199727,0.04122941,155.75,155.72,14.12120236]
[1749499200020,6.45822941,155.75,155.72,14.12120236]
[1749499200522,6.45822941,155.75,155.72,46.48120236]
[1749499200917,6.4172,155.74,155.72,46.48120236]
[1749499201315,0.04122941,155.75,155.72,46.48120236]
[1749499201524,6.45812941,155.75,155.72,46.48120236]
[1749499202026,0.04122941,155.75,155.73,6.4175]
[1749499202527,0.04122941,155.75,155.72,40.06330236]
[1749499202921,0.04122941,155.75,155.74,7.66194164]
[1749499203122,0.04122941,155.75,155.74,14.07914164]
[1749499203325,32.36,155.83,155.74,7.66194164]
[1749499203525,5.23107352,155.82,155.77,7.66194164]
[1749499203726,4.2934,155.84,155.77,32.36]
[1749499204027,7.66194164,155.8,155.74,32.36]
[1749499204228,6.4156,155.78,155.75,7.66194164]
[1749499204427,0.04122731,155.79,155.75,0.04705856]
[1749499204824,6.4159,155.77,155.75,0.04705856]
[1749499205626,6.4163,155.76,155.75,0.04705856]
[1749499206326,6.4161,155.77,155.75,0.04705856]
[1749499206935,6.4163,155.76,155.75,0.04705856]
[1749499207629,6.4161,155.77,155.75,0.04705856]
[1749499207930,0.04122731,155.79,155.75,6.46365856]
[1749499208530,6.4158,155.78,155.75,6.46365856]
[1749499208731,0.04122731,155.79,155.75,0.04705856]
[1749499209232,6.4162,155.77,155.75,6.46375856]
[1749499209433,0.04122731,155.79,155.75,0.04705856]
[1749499209939,6.4156,155.78,155.75,6.46365856]
[1749499210144,0.04122731,155.79,155.75,6.46365856]
[1749499210344,6.4156,155.78,155.75,6.46365856]
[1749499213344,0.04122731,155.79,155.76,7.66194164]
[1749499213937,0.04122731,155.79,155.75,0.04705856]
[1749499214139,7.70316895,155.79,155.75,0.04705856]
[1749499214444,6.4163,155.76,155.75,0.04705856]
[1749499220051,6.4161,155.77,155.75,6.46375856]
[1749499220258,0.04122731,155.79,155.75,0.04705856]
[1749499220651,6.4162,155.77,155.75,0.04705856]
[1749499220847,0.04122731,155.79,155.75,0.04705856]
[1749499221256,6.4163,155.76,155.75,0.04705856]
[1749499225258,11.67260447,155.76,155.75,0.04705856]
[1749499226465,6.4163,155.76,155.75,0.04705856]
[1749499230467,6.4161,155.77,155.75,0.04705856]
[1749499230664,0.04122731,155.79,155.75,0.04705856]
[1749499231369,6.4163,155.76,155.75,0.04705856]
[1749499238678,6.4176,155.73,155.72,32.36]
[1749499238880,11.87824164,155.75,155.69,40.10194164]
[1749499239683,0.04602299,155.74,155.7,0.04382486]
[1749499239875,6.4184,155.71,155.7,0.04382486]
[1749499241081,0.04602299,155.74,155.7,0.04382486]
[1749499241379,0.04602299,155.74,155.73,7.66194164]
[1749499241579,0.04602299,155.74,155.73,40.10194164]
[1749499242679,0.04602299,155.74,155.73,46.51954164]
[1749499248283,0.04602299,155.74,155.73,40.10194164]
[1749499250082,6.46322299,155.74,155.73,40.10194164]
[1749499255790,0.04602299,155.74,155.73,40.10194164]
[1749499256892,6.46322299,155.74,155.73,32.44]
[1749499258692,6.418,155.72,155.7,0.04382486]
[1749499258995,0.04602299,155.74,155.7,32.46382486]
[1749499259395,6.4182,155.72,155.7,32.46382486]
[1749499259994,6.4177,155.73,155.7,38.88252486]
[1749499260994,6.4177,155.73,155.7,32.46382486]
[1749499261197,0.04602299,155.74,155.7,32.46382486]
[1749499261198,0.04602299,155.74,155.72,7.66194164]
[1749499262700,0.04602299,155.74,155.73,6.4176]
[1749499262901,0.04602299,155.74,155.73,14.07954164]
[1749499266100,0.04602299,155.74,155.73,46.49954164]
[1749499267602,2.2562,155.8,155.76,6.4162]
[1749499267902,6.4154,155.79,155.77,7.66194164]
[1749499268102,5.94686233,155.82,155.77,14.07784164]
[1749499268309,10.32296233,155.83,155.77,7.66194164]
[1749499268512,6.4154,155.79,155.78,0.04264674]
[1749499268911,0.04704342,155.82,155.78,0.04264674]
[1749499269112,6.4145,155.81,155.78,0.04264674]
[1749499269504,0.04704342,155.82,155.78,0.04264674]
[1749499269705,6.46114342,155.82,155.79,7.66194164]
[1749499270101,6.46114342,155.82,155.79,14.07674164]
[1749499271313,6.46114342,155.82,155.8,6.4146]
[1749499271500,0.04704342,155.82,155.81,7.66194164]
[1749499272007,0.04704342,155.82,155.81,40.08194164]
[1749499272805,0.04704342,155.82,155.81,46.49624164]
[1749499273809,0.04704342,155.82,155.81,40.08194164]
[1749499276912,0.04704342,155.82,155.81,46.49624164]
[1749499279016,0.04704342,155.82,155.81,40.08194164]
[1749499279913,0.04704342,155.82,155.81,46.49624164]
[1749499280712,0.04704342,155.82,155.81,40.08194164]
[1749499281113,0.04704342,155.82,155.81,46.49624164]
[1749499283713,2.2106,155.88,155.84,7.66194164]
[1749499284021,217.45376101,155.9,155.86,7.66194164]
[1749499284318,6.4116,155.88,155.86,7.66194164]
[1749499285413,6.4116,155.88,155.86,14.07414164]
[1749499285719,6.43482396,155.89,155.86,7.66194164]
[1749499286105,6.43482396,155.89,155.86,14.07374164]
[1749499286306,0.02372396,155.89,155.88,7.66194164]
[1749499287517,0.02372396,155.89,155.85,32.30691574]
[1749499287718,0.02372396,155.89,155.85,39.96885738]
[1749499288418,6.412,155.87,155.85,39.96885738]
[1749499289114,6.4122,155.86,155.85,39.96885738]
[1749499290119,6.412,155.87,155.85,39.96885738]
[1749499291619,0.02372396,155.89,155.85,39.96885738]
[1749499291817,0.02372396,155.89,155.87,7.66194164]
[1749499292120,0.02372396,155.89,155.87,14.07374164]
[1749499292817,6.43492396,155.89,155.87,7.66194164]
[1749499293320,0.02372396,155.89,155.87,14.07334164]
[1749499293512,0.02372396,155.89,155.87,7.66194164]
[1749499294520,6.43492396,155.89,155.87,7.66194164]
[1749499294914,0.02372396,155.89,155.87,7.66194164]
[1749499295109,6.4114,155.88,155.87,7.66194164]
[1749499295314,6.4114,155.88,155.87,32.26]
[1749499296115,6.4122,155.86,155.85,0.04691574]
[1749499298025,6.412,155.87,155.85,0.04691574]
[1749499298618,6.4116,155.88,155.86,7.66194164]
[1749499299422,6.4116,155.88,155.86,14.07414164]
[1749499299622,6.4116,155.88,155.86,7.66194164]
[1749499299823,6.4118,155.87,155.86,7.66194164]
[1749499300220,0.02372396,155.89,155.86,7.66194164]
[1749499300418,6.4117,155.88,155.86,7.66194164]
[1749499300821,0.02372396,155.89,155.86,7.66194164]
[1749499301123,6.4118,155.87,155.86,7.66194164]
[1749499301321,6.4118,155.87,155.85,0.04691574]
[1749499301322,0.02372396,155.89,155.85,6.45921574]
[1749499301624,0.02372396,155.89,155.86,7.66194164]
[1749499301625,6.4117,155.88,155.86,7.66194164]
[1749499302625,6.4117,155.88,155.86,14.07404164]
[1749499304220,6.4117,155.88,155.86,7.66194164]
[1749499304525,6.4118,155.87,155.86,7.66194164]
[1749499304923,0.02372396,155.89,155.86,7.66194164]
[1749499305625,6.4116,155.88,155.86,14.07404164]
[1749499306126,0.02372396,155.89,155.87,6.4116]
[1749499306320,0.02372396,155.89,155.88,7.66194164]
[1749499306523,0.02372396,155.89,155.85,0.04691574]
[1749499306718,0.02372396,155.89,155.85,32.30691574]
[1749499307519,6.412,155.87,155.85,32.30691574]
[1749499309322,0.02372396,155.89,155.85,32.30691574]
[1749499309323,6.4122,155.86,155.85,32.30691574]
[1749499309525,6.4122,155.86,155.85,0.04691574]
[1749499310619,11.53674176,155.86,155.85,0.04691574]
[1749499310815,6.4122,155.86,155.85,0.04691574]
[1749499311020,11.53674176,155.86,155.85,0.04691574]
[1749499311220,6.4122,155.86,155.85,0.04691574]
[1749499311421,11.53674176,155.86,155.85,0.04691574]
[1749499328841,11.55812519,155.86,155.85,0.04691574]
[1749499331346,5.14592519,155.86,155.85,0.04691574]
[1749499331648,5.14592519,155.86,155.85,7.70885738]
[1749499331846,6.43492396,155.89,155.85,7.70885738]
[1749499332045,5.14616264,155.88,155.85,7.70885738]
[1749499332244,5.14616264,155.87,155.86,6.412]
[1749499332846,5.14616264,155.87,155.86,38.672]
[1749499334451,0.02372396,155.89,155.87,6.4116]
[1749499334650,5.15286367,155.88,155.87,14.07354164]
[1749499336845,5.15286367,155.88,155.86,32.26]
[1749499337040,0.02372396,155.89,155.86,32.26]
[1749499337248,5.15099795,155.88,155.86,32.26]
[1749499337450,6.4117,155.88,155.86,32.26]
[1749499338851,6.4118,155.87,155.86,32.26]
[1749499339649,6.4116,155.88,155.86,32.26]
[1749499340049,6.4116,155.88,155.86,38.6722]
[1749499340247,6.4118,155.87,155.86,32.26]
[1749499341650,6.4116,155.88,155.86,32.26]
[1749499343958,0.02372396,155.89,155.86,39.92194164]
[1749499344149,0.02372396,155.89,155.88,7.66194164]
[1749499344349,5.1817237,155.89,155.88,7.66194164]
[1749499347358,5.1817237,155.89,155.88,14.07334164]
[1749499349552,0.02372396,155.89,155.88,14.07334164]
[1749499349756,5.1638516,155.92,155.9,6.4102]
[1749499349957,5.1638516,155.91,155.9,46.31214164]
[1749499352162,11.56926418,155.94,155.92,6.4097]
[1749499352357,5.16026418,155.93,155.92,6.4097]
[1749499354162,5.16026418,155.93,155.9,46.31214164]
[1749499354364,6.4096,155.93,155.9,46.31214164]
[1749499354661,5.97043283,155.96,155.9,46.31244164]
[1749499354960,6.4099,155.92,155.9,39.90194164]
[1749499355662,11.57137022,155.92,155.9,39.90194164]
[1749499355962,6.4099,155.92,155.9,39.90194164]
[1749499356862,6.4102,155.91,155.9,39.90194164]
[1749499359358,6.41,155.92,155.9,46.31234164]
[1749499361065,2.2525,155.95,155.9,39.90194164]
[1749499361365,5.16139933,155.94,155.9,39.90194164]
[1749499361667,5.16139933,155.93,155.92,6.4097]
[1749499361966,5.16139933,155.96,155.92,6.4097]
[1749499362162,6.4089,155.94,155.92,6.4097]
[1749499362362,5.16077121,155.93,155.92,6.4097]
[1749499362564,5.97043283,155.97,155.92,7.66194164]
[1749499362867,5.16081174,155.96,155.93,6.409]
[1749499363165,5.16081174,155.95,155.93,6.409]
[1749499363362,5.16081174,155.94,155.93,6.409]
[1749499363558,5.16081174,155.97,155.93,6.409]
[1749499363761,6.4087,155.95,155.93,6.409]
[1749499363968,5.16081174,155.94,155.93,6.409]
[1749499364468,5.16081174,155.95,155.94,6.4089]
[1749499364668,5.16081174,155.95,155.94,14.07084164]
[1749499365369,5.16081174,155.95,155.94,7.66194164]
[1749499365570,5.16081174,155.98,155.94,7.66194164]
[1749499365772,5.16081174,155.97,155.94,39.88194164]
[1749499365970,5.16081174,155.96,155.94,39.88194164]
[1749499366170,5.16081174,155.95,155.94,39.88194164]
[1749499366371,5.16081174,155.98,155.94,39.88194164]
[1749499366575,6.4083,155.96,155.94,39.88194164]
[1749499366767,5.16081174,155.95,155.94,39.88194164]
[1749499366973,5.16081174,155.95,155.94,46.29084164]
[1749499367270,6.4078,155.97,155.94,46.29084164]
[1749499367476,5.18765834,155.96,155.94,46.29084164]
[1749499368065,5.18765834,155.98,155.94,46.29084164]
[1749499368270,5.18765834,155.97,155.94,46.29084164]
[1749499368572,5.18765834,155.96,155.94,32.22]
[1749499368768,4.4942,155.99,155.92,0.04246285]
[1749499368769,5.18765834,155.95,155.92,0.04246285]
[1749499368963,5.18765834,155.97,155.92,0.04246285]
[1749499369167,6.4093,155.93,155.92,0.04246285]
[1749499370972,11.60188609,155.93,155.92,0.04246285]
[1749499371172,6.4093,155.93,155.92,0.04246285]
[1749499371773,11.60188609,155.93,155.92,0.04246285]
[1749499371970,6.4093,155.93,155.92,0.04246285]
[1749499372577,11.60188609,155.93,155.92,0.04246285]
[1749499373563,6.4093,155.93,155.92,0.04246285]
[1749499374272,11.60188609,155.93,155.92,0.04246285]
[1749499374468,6.4093,155.93,155.92,0.04246285]
[1749499375075,11.60188609,155.93,155.92,0.04246285]
[1749499381779,5.19258609,155.93,155.92,6.45216285]
[1749499382888,5.19258609,155.93,155.92,0.04246285]
[1749499383592,5.19258609,155.93,155.92,6.45216285]
[1749499387086,6.4083,155.96,155.93,6.409]
[1749499387285,5.19584332,155.95,155.93,7.66194164]
[1749499387489,5.19584332,155.94,155.93,7.66194164]
[1749499387691,5.19584332,155.94,155.93,14.07124164]
[1749499389894,5.19584332,155.94,155.93,6.4093]
[1749499390093,5.19584332,155.94,155.93,14.07124164]
[1749499390795,5.19584332,155.94,155.93,6.4093]
[1749499390991,5.19584332,155.94,155.93,7.66194164]
[1749499391186,5.19584332,155.94,155.92,0.04246285]
[1749499391392,5.19584332,155.93,155.92,7.70440449]
[1749499391790,5.19584332,155.93,155.88,7.66194164]
[1749499391990,5.19584332,155.92,155.88,39.94194164]
[1749499392186,5.19584332,155.91,155.88,39.94194164]
[1749499392391,5.19584332,155.9,155.88,38.6912]
[1749499392594,6.4104,155.91,155.88,46.35314164]
[1749499392896,5.21254114,155.9,155.88,46.39375733]
[1749499393098,0.04246285,155.91,155.89,6.411]
[1749499393396,5.21373101,155.9,155.89,6.411]
[1749499394389,5.21373101,155.9,155.89,14.07294164]
[1749499395496,5.21373101,155.9,155.89,6.411]
[1749499395697,5.21373101,155.9,155.89,14.07294164]
[1749499403702,5.21373101,155.9,155.89,6.411]
[1749499404000,5.21373101,155.9,155.89,14.07294164]
[1749499407202,0.04246285,155.91,155.9,6.4106]
[1749499407409,5.24099942,155.91,155.9,6.4106]
[1749499410905,5.24099942,155.91,155.9,38.6306]
[1749499419418,5.24099942,155.91,155.9,39.88194164]
[1749499420618,11.65119942,155.91,155.9,39.88194164]
[1749499420818,5.24099942,155.91,155.9,39.88194164]
[1749499421114,5.24099942,155.91,155.9,46.29254164]
[1749499421425,5.97043283,155.96,155.9,39.88194164]
[1749499421628,5.97043283,155.96,155.94,6.4087]
[1749499422620,6.4078,155.97,155.94,6.4087]
[1749499423016,12.37793283,155.98,155.95,7.66194164]
[1749499423220,199.83832575,155.99,155.97,7.66194164]
[1749499423221,205.80875858,155.99,155.97,7.66194164]
[1749499423616,212.21575858,155.99,155.97,7.66194164]
[1749499423818,205.80875858,155.99,155.97,7.66194164]
[1749499424221,6.4073,155.98,155.97,7.66194164]
[1749499424616,6.408,155.97,155.95,7.66194164]
[1749499425819,6.408,155.97,155.95,14.07044164]
[1749499426220,6.4073,155.98,155.95,14.07044164]
[1749499426420,199.83832575,155.99,155.96,6.4078]
[1749499426620,199.83832575,155.99,155.95,7.66194164]
[1749499426919,6.4075,155.98,155.95,14.07004164]
[1749499428128,6.4077,155.97,155.95,7.66194164]
[1749499428923,6.4077,155.97,155.95,14.07044164]
[1749499429318,6.4082,155.96,155.94,32.22]
[1749499429518,205.80875858,155.99,155.95,7.66194164]
[1749499429717,199.83832575,155.99,155.95,7.66194164]
[1749499430213,6.4079,155.97,155.95,7.66194164]
[1749499430617,5.97043283,155.97,155.94,32.22]
[1749499430915,6.4085,155.95,155.94,32.22]
[1749499431119,6.4085,155.95,155.93,0.04171712]
[1749499432621,6.4089,155.94,155.93,0.04171712]
[1749499433023,5.97043283,155.97,155.93,6.45101712]
[1749499433222,6.4087,155.95,155.93,6.45101712]
[1749499433423,5.20410521,155.94,155.93,6.45101712]
[1749499434721,5.20410521,155.94,155.93,0.04171712]
[1749499436328,5.20410521,155.94,155.93,6.45101712]
[1749499442436,11.61300521,155.94,155.93,0.04171712]
[1749499442636,5.20410521,155.94,155.93,0.04171712]
[1749499443434,11.61300521,155.94,155.93,0.04171712]
[1749499446137,11.61173053,155.94,155.93,0.04171712]
[1749499451046,5.20283053,155.94,155.93,0.04171712]
[1749499451350,5.20283053,155.94,155.93,6.45101712]
[1749499453645,5.20283053,155.94,155.93,0.04171712]
[1749499455850,5.20283053,155.94,155.93,6.45101712]
[1749499460956,5.9668836,155.98,155.96,6.4081]
[1749499461155,5.9668836,155.99,155.94,7.64207196]
[1749499461355,12.3738836,155.99,155.95,32.22]
[1749499461552,12.3738836,155.99,155.96,6.4079]
[1749499463252,6.407,155.99,155.96,6.4079]
[1749499464557,6.4073,155.98,155.96,6.4079]
[1749499465551,6.4071,155.99,155.96,6.4079]
[1749499466156,6.4071,155.99,155.96,7.64207196]
[1749499466555,6.4071,155.99,155.96,14.04997196]
[1749499466854,6.4071,155.99,155.96,7.64207196]
[1749499467653,6.4071,155.99,155.97,6.4076]
[1749499467859,12.37770542,156.0,155.97,6.4076]
[1749499468155,12.37770542,156.0,155.97,0.04208744]
[1749499469160,6.4069,155.99,155.97,0.04208744]